bitfinex/quotes_SOLUSD_20250308
["timestamp","ask_amount","ask_price","bid_price","bid_amount"]
[1741395876152,20.61473402,141.24,141.22,0.033]
[1741395876357,27.69443402,141.25,141.22,0.033]
[1741395876544,20.61473402,141.25,141.22,0.033]
[1741395876751,20.61473402,141.24,141.22,0.033]
[1741395877153,20.61473402,141.25,141.22,0.033]
[1741395877366,82.33,141.28,141.22,20.64773402]
[1741395877673,82.33,141.28,141.24,20.61473402]
[1741395877977,89.4081,141.28,141.24,20.61473402]
[1741395878174,89.4081,141.28,141.23,20.61473402]
[1741395878469,89.4081,141.28,141.24,20.61473402]
[1741395878656,89.4081,141.28,141.23,20.61473402]
[1741395880171,82.33,141.28,141.24,20.61473402]
[1741395880676,0.03,141.28,141.24,20.61473402]
[1741395881553,0.03,141.28,141.23,27.69533402]
[1741395882575,20.61473402,141.27,141.22,6.413]
[1741395883358,20.61473402,141.27,141.22,13.494]
[1741395883572,20.64473402,141.28,141.22,34.10873402]
[1741395883874,27.72303402,141.28,141.22,34.10873402]
[1741395884460,0.03,141.28,141.24,20.61473402]
[1741395884665,0.03,141.28,141.22,13.494]
[1741395884861,0.03,141.28,141.25,20.61473402]
[1741395885680,0.03,141.28,141.26,20.61473402]
[1741395885878,0.03,141.28,141.26,27.69363402]
[1741395886765,0.03,141.28,141.26,7.0789]
[1741395887073,0.03,141.28,141.25,27.69413402]
[1741395887459,0.03,141.28,141.26,20.61473402]
[1741395887868,0.03,141.28,141.26,27.69373402]
[1741395888473,0.03,141.28,141.26,7.079]
[1741395888672,0.03,141.28,141.24,6.1482]
[1741395888883,0.03,141.28,141.23,20.61473402]
[1741395889753,0.03,141.28,141.23,27.69513402]
[1741395891372,20.61473402,141.27,141.22,13.4739]
[1741395891757,20.64473402,141.28,141.22,27.72863402]
[1741395892992,27.72323402,141.28,141.22,27.72863402]
[1741395893759,20.61473402,141.27,141.22,0.033]
[1741395893985,20.61473402,141.26,141.22,0.033]
[1741395895087,0.03,141.28,141.22,0.033]
[1741395895088,27.69353402,141.27,141.22,0.033]
[1741395896462,27.69353402,141.27,141.22,20.64773402]
[1741395896786,27.69353402,141.27,141.22,27.72863402]
[1741395898091,20.64473402,141.28,141.22,27.72863402]
[1741395898273,0.03,141.28,141.24,20.61473402]
[1741395898474,0.03,141.28,141.25,20.61473402]
[1741395899093,0.03,141.28,141.24,20.61473402]
[1741395899294,0.03,141.28,141.25,7.0796]
[1741395900299,20.64473402,141.28,141.22,20.64773402]
[1741395900476,20.61473402,141.27,141.22,0.033]
[1741395900869,0.03,141.28,141.22,0.033]
[1741395900870,20.61473402,141.26,141.22,0.033]
[1741395901090,0.03,141.28,141.22,27.72863402]
[1741395901286,0.03,141.28,141.24,20.61473402]
[1741395901487,0.03,141.28,141.26,20.61473402]
[1741395901699,0.03,141.28,141.27,20.61473402]
[1741395902612,0.03,141.28,141.23,22.20653402]
[1741395902781,20.61473402,141.27,141.22,0.033]
[1741395902976,20.61473402,141.26,141.22,0.033]
[1741395903307,20.61473402,141.25,141.22,0.033]
[1741395903601,27.69473402,141.25,141.22,0.033]
[1741395904712,20.61473402,141.24,141.22,0.033]
[1741395904908,27.69473402,141.25,141.22,0.033]
[1741395905715,20.61473402,141.25,141.22,0.033]
[1741395905919,109.29473402,141.27,141.22,0.033]
[1741395906211,102.91473402,141.27,141.22,0.033]
[1741395906408,82.3,141.27,141.23,20.61473402]
[1741395906999,82.3,141.27,141.22,20.64773402]
[1741395907177,82.3,141.27,141.23,20.61473402]
[1741395907589,82.3,141.27,141.24,20.61473402]
[1741395909115,0.03,141.28,141.26,20.61473402]
[1741395909281,0.03,141.28,141.27,28.59823402]
[1741395909691,0.03,141.28,141.27,35.67683402]
[1741395910217,0.03,141.32,141.27,53.37343402]
[1741395910399,0.03,141.32,141.31,20.61473402]
[1741395911092,0.0001,141.32,141.31,20.61473402]
[1741395911289,0.0001,141.32,141.31,42.77426804]
[1741395911692,0.0001,141.32,141.31,49.85086804]
[1741395912208,1.995252,141.36,141.32,6.4387]
[1741395912508,1.995252,141.36,141.35,20.61473402]
[1741395912696,1.995252,141.36,141.35,26.99473402]
[1741395914507,1.995252,141.36,141.35,34.06933402]
[1741395916007,5.2e-05,141.36,141.35,34.06933402]
[1741395916222,5.2e-05,141.36,141.35,36.67491243]
[1741395916510,0.03,141.4,141.39,20.61473402]
[1741395916814,0.03,141.4,141.39,27.68733402]
[1741395918787,0.03,141.4,141.39,34.12603402]
[1741395922614,0.03,141.4,141.39,7.0726]
[1741395922802,0.03,141.4,141.39,27.68733402]
[1741395925015,0.03,141.4,141.39,34.04733402]
[1741395926016,0.0001,141.4,141.39,35.10787453]
[1741395926220,0.0001,141.4,141.39,34.04733402]
[1741395927122,0.0001,141.4,141.39,27.68733402]
[1741395927301,0.0001,141.4,141.39,34.04733402]
[1741395930124,0.0001,141.41,141.39,54.66206804]
[1741395930315,0.0001,141.41,141.4,41.22946804]
[1741395930527,0.0001,141.41,141.4,20.61473402]
[1741395930914,0.0001,141.41,141.4,26.97473402]
[1741395931116,0.0001,141.41,141.4,34.04683402]
[1741395935925,0.0001,141.41,141.4,34.02683402]
[1741395938122,0.0001,141.41,141.4,34.05983402]
[1741395938302,0.0001,141.41,141.4,0.033]
[1741395938721,0.0001,141.41,141.4,7.1051]
[1741395939015,0.0001,141.41,141.4,27.71983402]
[1741395939904,0.0001,141.41,141.4,7.1051]
[1741395940298,0.0001,141.41,141.4,27.71983402]
[1741395940627,0.0001,141.41,141.4,0.033]
[1741395940921,20.61483402,141.41,141.4,0.033]
[1741395941107,0.0001,141.41,141.4,0.033]
[1741395944209,0.0001,141.41,141.4,20.64773402]
[1741395944607,0.0001,141.41,141.4,0.033]
[1741395945912,0.0001,141.41,141.4,13.1801623]
[1741395946118,0.0001,141.41,141.4,20.2522623]
[1741395946311,0.0001,141.41,141.4,0.033]
[1741395947526,0.0001,141.41,141.4,13.1801623]
[1741395947728,0.0001,141.41,141.4,20.2522623]
[1741395948706,0.0001,141.41,141.4,0.033]
[1741395949522,0.0001,141.41,141.4,7.1051]
[1741395951432,0.0001,141.41,141.4,0.033]
[1741395959815,104.37165363,141.41,141.4,0.033]
[1741395960020,50.0,141.4,141.35,0.033]
[1741395960336,20.54335363,141.37,141.35,0.033]
[1741395960509,27.61715363,141.37,141.35,0.033]
[1741395960714,26.83965363,141.36,141.35,0.033]
[1741395961014,110.66785363,141.36,141.35,0.033]
[1741395961245,78.36785363,141.36,141.35,0.033]
[1741395961535,78.36785363,141.36,141.27,20.54335363]
[1741395961740,20.54335363,141.31,141.26,20.54335363]
[1741395961913,50.0,141.34,141.25,0.033]
[1741395961914,26.83965363,141.29,141.25,0.033]
[1741395962537,33.91735363,141.29,141.25,0.033]
[1741395964619,26.83965363,141.29,141.25,0.033]
[1741395966024,6.2963,141.29,141.25,0.033]
[1741395966354,7.534,141.33,141.28,20.54335363]
[1741395966651,7.534,141.33,141.3,20.54335363]
[1741395966821,7.534,141.33,141.31,20.54335363]
[1741395967021,6.0247,141.33,141.31,20.54335363]
[1741395968244,6.0247,141.33,141.3,20.54335363]
[1741395968424,6.0247,141.33,141.29,20.54335363]
[1741395968623,6.0247,141.33,141.28,20.54335363]
[1741395969043,33.64385363,141.33,141.28,20.54335363]
[1741395969349,6.0247,141.33,141.29,20.54335363]
[1741395969641,108.86805363,141.36,141.31,20.54335363]
[1741395970245,108.86805363,141.36,141.31,27.61995363]
[1741395970440,108.86805363,141.36,141.31,20.54335363]
[1741395970644,108.86805363,141.36,141.31,27.61995363]
[1741395970946,88.3247,141.36,141.31,27.61995363]
[1741395971127,88.3247,141.36,141.32,20.54335363]
[1741395971333,1.5093,141.37,141.34,20.54335363]
[1741395971922,1.5093,141.37,141.33,20.54335363]
[1741395972639,7.0735,141.38,141.33,20.54335363]
[1741395973242,27.61685363,141.38,141.32,20.54335363]
[1741395973451,20.54335363,141.35,141.29,20.54335363]
[1741395973949,20.54335363,141.35,141.3,20.54335363]
[1741395974338,27.61745363,141.36,141.3,20.54335363]
[1741395975047,27.61745363,141.36,141.27,7.0786]
[1741395975228,102.84335363,141.35,141.29,20.54335363]
[1741395975426,102.84335363,141.35,141.25,0.033]
[1741395975427,20.54335363,141.33,141.25,0.033]
[1741395975631,20.54335363,141.32,141.26,20.54335363]
[1741395976032,28.07735363,141.33,141.27,20.54335363]
[1741395976333,89.3748,141.35,141.31,20.54335363]
[1741395976530,89.3748,141.35,141.3,20.54335363]
[1741395976753,89.3748,141.35,141.29,20.54335363]
[1741395976923,109.91815363,141.35,141.29,20.54335363]
[1741395977128,109.91815363,141.35,141.25,0.033]
[1741395977129,20.54335363,141.33,141.25,0.033]
[1741395977326,20.54335363,141.33,141.27,20.54335363]
[1741395977948,26.56805363,141.31,141.25,20.57635363]
[1741395978155,20.54335363,141.29,141.25,0.033]
[1741395978650,27.62145363,141.28,141.25,0.033]
[1741395979750,20.54335363,141.27,141.25,0.033]
[1741395979956,82.3,141.26,141.25,0.033]
[1741395980744,89.3791,141.26,141.25,0.033]
[1741395981052,109.92245363,141.26,141.25,0.033]
[1741395981258,34.08855363,141.26,141.25,0.033]
[1741395983068,153.34,141.28,141.25,20.57635363]
[1741395983243,160.4182,141.28,141.25,0.033]
[1741395983627,57.8493,141.31,141.27,20.54335363]
[1741395983628,83.8093,141.31,141.27,20.54335363]
[1741395983831,83.8093,141.31,141.28,20.54335363]
[1741395984334,83.8093,141.31,141.27,20.54335363]
[1741395985150,82.3,141.31,141.28,20.54335363]
[1741395985333,6.4661,141.33,141.29,20.54335363]
[1741395985531,6.4661,141.33,141.3,20.54335363]
[1741395986244,82.3,141.34,141.3,20.54335363]
[1741395986443,89.3752,141.34,141.29,20.54335363]
[1741395986851,89.3752,141.34,141.28,20.54335363]
[1741395986852,20.54335363,141.33,141.28,20.54335363]
[1741395987234,109.91855363,141.34,141.28,20.54335363]
[1741395987638,82.3,141.34,141.3,20.54335363]
[1741395988258,109.91845363,141.34,141.26,13.4189]
[1741395988449,20.54335363,141.33,141.27,20.54335363]
[1741395988636,109.91845363,141.34,141.28,20.54335363]
[1741395989432,109.91845363,141.34,141.29,20.54335363]
[1741395989643,89.3751,141.34,141.29,20.54335363]
[1741395990057,20.54335363,141.33,141.27,20.54335363]
[1741395990839,20.54335363,141.32,141.26,20.54335363]
[1741395991039,20.54335363,141.33,141.27,20.54335363]
[1741395991260,7.0761,141.32,141.27,20.54335363]
[1741395992341,89.3753,141.34,141.3,20.54335363]
[1741395993167,109.91865363,141.34,141.28,20.54335363]
[1741395993370,20.54335363,141.33,141.27,20.54335363]
[1741395993568,109.91865363,141.34,141.28,20.54335363]
[1741395993941,89.3753,141.34,141.3,20.54335363]
[1741395994145,82.3,141.34,141.3,20.54335363]
[1741395994344,82.3,141.34,141.31,20.54335363]
[1741395994549,89.3751,141.34,141.29,20.54335363]
[1741395995381,89.3751,141.34,141.3,20.54335363]
[1741395995860,20.54335363,141.33,141.27,20.54335363]
[1741395996367,7.0761,141.32,141.27,20.54335363]
[1741395996747,7.0761,141.32,141.28,20.54335363]
[1741395998156,7.0756,141.33,141.28,20.54335363]
[1741395999446,7.0756,141.33,141.29,20.54335363]
[1741395999642,7.0756,141.33,141.28,20.54335363]
[1741396000057,7.0756,141.33,141.29,20.54335363]
[1741396001074,27.61895363,141.33,141.27,20.57635363]
[1741396001251,20.54335363,141.32,141.27,0.033]
[1741396001577,7.0766,141.31,141.27,0.033]
[1741396003752,7.0766,141.31,141.27,20.57635363]
[1741396004672,0.03,141.35,141.3,41.08670726]
[1741396004865,0.03,141.35,141.34,20.54335363]
[1741396005168,0.03,141.35,141.34,27.02335363]
[1741396005768,0.03,141.35,141.34,34.09845363]
[1741396006355,0.03,141.35,141.34,27.02335363]
[1741396007377,0.03,141.35,141.34,32.88259092]
[1741396009092,0.03,141.35,141.33,32.88259092]
[1741396016987,0.03,141.35,141.34,32.88259092]
[1741396019172,0.03,141.35,141.28,6.116]
[1741396019366,0.03,141.35,141.31,32.88259092]
[1741396020185,0.03,141.35,141.27,1.6176]
[1741396020401,7.1046,141.35,141.3,32.88259092]
[1741396022190,7.1046,141.35,141.31,32.88259092]
[1741396025707,7.1046,141.35,141.33,32.88259092]
[1741396025883,7.1046,141.35,141.34,32.88259092]
[1741396026086,0.03,141.35,141.34,32.88259092]
[1741396026906,0.03,141.35,141.33,32.88259092]
[1741396027202,0.03,141.35,141.32,32.88259092]
[1741396029383,0.03,141.35,141.33,20.56254774]
[1741396029884,0.03,141.35,141.34,20.56254774]
[1741396032076,0.03,141.35,141.33,20.56254774]
[1741396032493,0.03,141.35,141.32,20.56254774]
[1741396032697,0.03,141.35,141.31,20.56254774]
[1741396033005,0.03,141.35,141.3,20.59554774]
[1741396033201,24.7911,141.35,141.3,20.59554774]
[1741396033406,24.7911,141.35,141.31,20.56254774]
[1741396033782,7.1046,141.35,141.33,20.56254774]
[1741396034203,0.03,141.35,141.33,20.56254774]
[1741396034710,0.03,141.35,141.34,20.56254774]
[1741396040193,0.03,141.35,141.34,27.63764774]
[1741396040581,0.03,141.35,141.34,20.56254774]
[1741396042999,0.03,141.35,141.34,27.63764774]
[1741396045587,0.03,141.35,141.34,20.56254774]
[1741396046403,0.03,141.35,141.33,20.56254774]
[1741396046806,0.03,141.35,141.34,20.56254774]
[1741396047814,0.03,141.35,141.34,20.59554774]
[1741396049723,0.03,141.35,141.34,35.08674774]
[1741396050021,0.03,141.35,141.34,42.16184774]
[1741396051810,0.03,141.35,141.34,22.24644774]
[1741396053112,0.03,141.35,141.34,29.32154774]
[1741396053910,0.03,141.35,141.34,20.59554774]
[1741396054118,0.03,141.35,141.34,0.033]
[1741396054497,0.03,141.35,141.34,20.59554774]
[1741396056295,0.03,141.35,141.34,27.67064774]
[1741396057804,0.03,141.35,141.34,20.59554774]
[1741396058013,0.03,141.35,141.34,0.033]
[1741396058311,0.03,141.35,141.34,20.59554774]
[1741396058515,0.03,141.35,141.34,27.67064774]
[1741396067824,0.03,141.35,141.34,20.59554774]
[1741396068222,0.03,141.35,141.34,27.67064774]
[1741396070912,0.03,141.35,141.34,20.59554774]
[1741396071823,0.03,141.35,141.34,0.033]
[1741396072623,0.03,141.35,141.34,20.59554774]
[1741396074419,0.03,141.35,141.34,27.67064774]
[1741396074635,0.03,141.35,141.34,20.59554774]
[1741396075504,0.03,141.35,141.34,27.67064774]
[1741396076431,0.03,141.35,141.34,20.59554774]
[1741396078036,0.03,141.35,141.34,0.033]
[1741396079411,0.03,141.35,141.34,20.59554774]
[1741396080531,0.03,141.35,141.34,27.67064774]
[1741396084835,0.0001,141.35,141.34,27.67064774]
[1741396087243,0.0001,141.35,141.34,13.18204095]
[1741396089438,0.0001,141.35,141.34,20.25714095]
[1741396090049,0.0001,141.35,141.34,0.033]
[1741396090418,0.0001,141.35,141.34,20.25714095]
[1741396093341,0.0001,141.35,141.34,20.58558179]
[1741396095226,0.0001,141.35,141.34,27.66068179]
[1741396097545,0.0001,141.35,141.34,7.1081]
[1741396097856,0.0001,141.35,141.34,0.033]
[1741396099667,20.55268179,141.35,141.34,0.033]
[1741396100774,27.62728179,141.35,141.34,0.033]
[1741396100946,40.14978179,141.35,141.34,0.033]
[1741396102541,19.5972,141.35,141.34,0.033]
[1741396102742,40.14978179,141.35,141.34,0.033]
[1741396103663,19.5972,141.35,141.34,0.033]
[1741396103856,13.2172,141.35,141.34,0.033]
[1741396104050,6.1426,141.35,141.34,0.033]
[1741396104947,0.0001,141.35,141.34,0.033]
[1741396110891,0.0001,141.35,141.34,20.58558179]
[1741396111390,0.0001,141.35,141.34,0.033]
[1741396114803,0.0001,141.35,141.34,20.58558179]
[1741396115009,0.0001,141.35,141.34,0.033]
[1741396116587,0.0001,141.35,141.34,20.58558179]
[1741396116993,0.0001,141.35,141.34,0.033]
[1741396117496,20.55268179,141.35,141.34,0.033]
[1741396118779,0.0001,141.35,141.34,0.033]
[1741396119185,0.0001,141.35,141.34,20.58558179]
[1741396119588,0.0001,141.35,141.34,0.033]
[1741396120092,0.0001,141.35,141.34,20.58558179]
[1741396122686,0.0001,141.35,141.34,27.66068179]
[1741396123601,0.0001,141.35,141.34,20.58558179]
[1741396123906,0.0001,141.35,141.34,27.66068179]
[1741396124211,0.0001,141.35,141.34,20.58558179]
[1741396124822,0.0001,141.35,141.34,27.66068179]
[1741396126604,0.0001,141.35,141.34,0.033]
[1741396128099,0.0001,141.35,141.34,20.58558179]
[1741396130493,0.0001,141.35,141.34,0.033]
[1741396130692,0.0001,141.35,141.34,20.58558179]
[1741396130897,0.0001,141.35,141.34,0.033]
[1741396134789,20.55268179,141.35,141.34,0.033]
[1741396135514,27.62728179,141.35,141.34,0.033]
[1741396135811,33.71358179,141.35,141.34,0.033]
[1741396138411,0.0001,141.35,141.34,0.033]
[1741396138795,7.0747,141.35,141.34,0.033]
[1741396140709,27.62728179,141.35,141.34,0.033]
[1741396141287,7.0747,141.35,141.34,0.033]
[1741396141486,27.62728179,141.35,141.34,0.033]
[1741396142408,7.0747,141.35,141.34,0.033]
[1741396144489,20.23904475,141.35,141.34,0.033]
[1741396144694,70.23904475,141.35,141.34,0.033]
[1741396144894,70.23904475,141.35,141.34,0.0001]
[1741396145310,77.65020156,141.35,141.34,0.0001]
[1741396148015,57.0747,141.35,141.34,0.0001]
[1741396148228,7.0747,141.35,141.34,0.0001]
[1741396151409,27.65020156,141.35,141.34,0.0001]
[1741396152416,7.0747,141.35,141.34,0.0001]
[1741396153003,27.65020156,141.35,141.34,0.0001]
[1741396153922,77.65020156,141.35,141.34,0.0001]
[1741396154807,50.0,141.31,141.27,0.033]
[1741396155013,20.57550156,141.29,141.27,0.033]
[1741396155221,173.89550156,141.3,141.27,0.033]
[1741396156508,7.0776,141.29,141.27,0.033]
[1741396157615,27.65310156,141.29,141.27,0.033]
[1741396158411,159.95360156,141.28,141.27,0.033]
[1741396158611,77.65360156,141.28,141.27,0.033]
[1741396165313,70.25746927,141.28,141.27,0.033]
[1741396167314,70.25746927,141.28,141.25,0.033]
[1741396167515,13.17936927,141.27,141.25,0.033]
[1741396169115,20.25816927,141.27,141.25,0.033]
[1741396169939,178.7492,141.3,141.25,0.033]
[1741396169940,13.17936927,141.29,141.25,0.033]
[1741396170636,82.3,141.27,141.25,0.033]
[1741396171834,82.3,141.27,141.25,13.21236927]
[1741396173036,82.3,141.27,141.25,0.033]
[1741396173234,13.17936927,141.26,141.25,0.033]
[1741396174419,102.55806927,141.27,141.25,0.033]
[1741396175535,13.17936927,141.26,141.25,0.033]
[1741396175841,50.0,141.24,141.22,0.033]
[1741396176137,95.47936927,141.23,141.22,0.033]
[1741396176723,13.17936927,141.23,141.22,0.033]
[1741396177425,20.25996927,141.23,141.22,0.033]
[1741396178650,26.65996927,141.23,141.22,0.033]
[1741396179140,50.0,141.18,141.12,0.033]
[1741396179442,50.0,141.18,141.05,52.71747708]
[1741396179443,50.0,141.11,141.03,17.15668706]
[1741396179633,20.63326625,141.1,141.04,20.63326625]
[1741396179939,70.63326625,141.11,141.06,20.63326625]
[1741396180152,70.63326625,141.11,141.05,20.63326625]
[1741396180331,13.5061,141.12,141.03,37.78995331]
[1741396180332,50.0,141.08,141.03,37.78995331]
[1741396180516,70.63326625,141.1,141.05,20.63326625]
[1741396181021,82.3,141.08,141.04,20.63326625]
[1741396181421,82.3,141.08,141.05,20.63326625]
[1741396182438,82.3,141.12,141.07,20.63326625]
[1741396182639,20.63326625,141.14,141.08,20.63326625]
[1741396182939,20.63326625,141.13,141.07,20.63326625]
[1741396185318,20.63326625,141.13,141.03,8.0938]
[1741396185319,27.71846625,141.14,141.08,20.63326625]
[1741396188552,27.71846625,141.14,141.08,27.72136625]
[1741396189047,20.63326625,141.13,141.08,27.72136625]
[1741396189351,20.63326625,141.13,141.07,27.72176625]
[1741396189926,27.71846625,141.14,141.08,20.63326625]
[1741396190134,27.71846625,141.14,141.08,27.72116625]
[1741396190346,27.71846625,141.14,141.09,20.63326625]
[1741396190851,27.71846625,141.14,141.08,27.72116625]
[1741396191047,70.63326625,141.13,141.05,0.033]
[1741396191228,20.63326625,141.11,141.05,7.1225]
[1741396191430,20.63326625,141.12,141.07,20.63326625]
[1741396191660,20.63326625,141.13,141.07,20.63326625]
[1741396192253,27.71836625,141.14,141.08,20.63326625]
[1741396193531,20.63326625,141.13,141.07,20.63326625]
[1741396195049,7.0861,141.12,141.07,20.63326625]
[1741396196660,7.0861,141.12,141.07,27.72176625]
[1741396197657,27.71906625,141.13,141.07,27.72176625]
[1741396197851,7.0858,141.13,141.08,20.63326625]
[1741396199053,27.71906625,141.13,141.07,20.63326625]
[1741396199559,7.0858,141.13,141.07,20.63326625]
[1741396199737,27.71906625,141.13,141.07,20.63326625]
[1741396200364,27.71906625,141.13,141.08,20.63326625]
[1741396200557,7.0858,141.13,141.08,20.63326625]
[1741396200855,27.71906625,141.13,141.08,27.72136625]
[1741396201063,7.0858,141.13,141.08,27.72136625]
[1741396201363,27.74856625,141.14,141.08,27.72136625]
[1741396202265,20.63326625,141.12,141.06,27.75496625]
[1741396202762,7.0866,141.11,141.06,27.75496625]
[1741396203166,7.0866,141.11,141.06,20.66626625]
[1741396203456,20.63326625,141.1,141.06,0.033]
[1741396204053,27.71986625,141.11,141.06,0.033]
[1741396204564,20.63326625,141.1,141.06,0.033]
[1741396204863,20.63326625,141.08,141.06,0.033]
[1741396205246,82.3,141.09,141.06,0.033]
[1741396206136,89.3876,141.09,141.06,0.033]
[1741396206335,110.02086625,141.09,141.06,0.033]
[1741396206958,89.3876,141.09,141.06,0.033]
[1741396207245,110.02086625,141.09,141.06,0.033]
[1741396207856,20.63326625,141.08,141.06,0.033]
[1741396208169,20.63326625,141.07,141.06,0.033]
[1741396208467,27.72186625,141.07,141.06,0.033]
[1741396209262,77.72186625,141.07,141.06,0.033]
[1741396210159,77.72186625,141.07,141.03,0.033]
[1741396210160,50.0,141.04,141.03,0.033]
[1741396210367,231.28336625,141.04,141.03,0.033]
[1741396211056,181.28336625,141.04,141.03,0.033]
[1741396211444,174.19326625,141.04,141.03,0.033]
[1741396211749,153.56,141.04,141.03,0.033]
[1741396212358,160.6501,141.04,141.03,0.033]
[1741396212747,153.56,141.04,141.03,0.033]
[1741396213769,160.6501,141.04,141.03,0.033]
[1741396214457,153.56,141.04,141.03,0.033]
[1741396219575,7.0896,141.05,141.03,0.033]
[1741396219874,102.60872603,141.06,141.03,0.033]
[1741396222256,13.21942603,141.04,140.97,0.033]
[1741396222458,132.3,141.05,140.97,0.033]
[1741396222459,13.21942603,141.01,140.97,0.033]
[1741396222671,13.21942603,140.98,140.97,0.033]
[1741396224070,20.31262603,140.98,140.97,0.033]
[1741396224568,123.19033015,140.98,140.97,0.0001]
[1741396224759,283.21033015,140.98,140.97,0.0001]
[1741396224960,283.21033015,140.98,140.96,0.0001]
[1741396225156,50.0,140.94,140.92,0.033]
[1741396225355,102.99633222,140.93,140.92,0.033]
[1741396225761,82.3,140.93,140.92,0.033]
[1741396226273,20.69633222,140.93,140.92,0.033]
[1741396227780,20.69633222,140.94,140.92,0.033]
[1741396228156,27.79203222,140.93,140.92,0.033]
[1741396231291,132.3,140.92,140.84,1.5629]
[1741396231474,20.69633222,140.87,140.84,1.5629]
[1741396231672,20.69633222,140.86,140.82,0.033]
[1741396231868,20.69633222,140.87,140.82,0.033]
[1741396232187,20.69633222,140.87,140.82,20.72933222]
[1741396232359,20.69633222,140.88,140.82,20.72933222]
[1741396232686,27.79363222,140.9,140.84,20.69633222]
[1741396232989,27.79363222,140.9,140.85,20.69633222]
[1741396233174,20.69633222,140.9,140.85,20.69633222]
[1741396233383,27.79363222,140.9,140.85,20.69633222]
[1741396233892,27.79363222,140.9,140.82,7.1342]
[1741396233893,27.79363222,140.9,140.84,20.69633222]
[1741396234696,20.69633222,140.89,140.84,20.69633222]
[1741396234990,27.79363222,140.9,140.84,27.79643222]
[1741396236291,20.69633222,140.89,140.84,20.69633222]
[1741396236475,20.69633222,140.89,140.83,27.79703222]
[1741396236865,20.69633222,140.89,140.83,20.69633222]
[1741396237060,20.69633222,140.88,140.83,20.69633222]
[1741396238891,7.0987,140.87,140.83,20.69633222]
[1741396239493,17.743,140.9,140.83,20.69633222]
[1741396239494,20.69633222,140.9,140.84,20.69633222]
[1741396239791,102.99633222,140.91,140.86,20.69633222]
[1741396240091,20.69633222,140.89,140.82,7.1341]
[1741396240388,20.69633222,140.87,140.82,0.033]
[1741396240566,20.69633222,140.87,140.82,20.72933222]
[1741396240767,102.99633222,140.88,140.82,27.83043222]
[1741396240967,89.3986,140.88,140.83,20.69633222]
[1741396241188,82.3,140.88,140.84,20.69633222]
[1741396241373,89.3982,140.88,140.82,7.1341]
[1741396241574,89.3982,140.88,140.84,20.69633222]
[1741396241784,7.0978,140.89,140.84,20.69633222]
[1741396242096,89.3969,140.91,140.87,20.69633222]
[1741396242296,160.8563,140.92,140.87,20.69633222]
[1741396243288,181.55263222,140.92,140.87,20.69633222]
[1741396243494,181.55263222,140.92,140.86,20.69633222]
[1741396243797,181.55263222,140.92,140.87,20.69633222]
[1741396245572,181.55263222,140.92,140.86,27.79543222]
[1741396246495,181.55263222,140.92,140.87,20.69633222]
[1741396246683,160.8563,140.92,140.87,27.79503222]
[1741396246877,160.8563,140.92,140.87,20.69633222]
[1741396247079,181.55263222,140.92,140.86,22.35563222]
[1741396247287,20.69633222,140.9,140.84,27.03633222]
[1741396247796,20.69633222,140.9,140.84,20.69633222]
[1741396248099,20.69633222,140.9,140.84,27.79653222]
[1741396248286,20.69633222,140.91,140.85,20.69633222]
[1741396248679,7.0972,140.9,140.86,0.033]
[1741396249481,153.76,140.92,140.86,20.72933222]
[1741396249776,174.45633222,140.92,140.86,20.72933222]
[1741396250198,20.69633222,140.9,140.86,0.033]
[1741396250710,7.0977,140.89,140.86,0.033]
[1741396251602,13.2481769,140.91,140.86,0.033]
[1741396251799,20.3448769,140.91,140.86,0.033]
[1741396252396,7.0967,140.91,140.86,13.2811769]
[1741396252906,153.76,140.92,140.87,13.2481769]
[1741396253206,160.8564,140.92,140.87,13.2481769]
[1741396253788,160.8564,140.92,140.87,20.3468769]
[1741396254105,160.8563,140.92,140.87,20.3468769]
[1741396255096,160.8563,140.92,140.87,13.2481769]